bitfinex/quotes_ETHUSD_20250525
["timestamp","ask_amount","ask_price","bid_price","bid_amount"]
[1748179049034,4.02984615,2508.0,2507.3,0.7975]
[1748179050621,3.98,2508.0,2507.3,0.7975]
[1748179051150,1.20091695,2508.1,2507.3,0.7975]
[1748179051329,4.37757079,2508.1,2507.3,0.7975]
[1748179051840,4.95512249,2508.1,2507.3,0.7975]
[1748179052944,0.55,2508.0,2507.3,0.7975]
[1748179053142,0.7981,2507.9,2507.3,0.7975]
[1748179054521,0.04985188,2507.8,2507.3,0.7975]
[1748179055318,1.3638,2507.7,2507.1,0.25]
[1748179055643,1.3638,2507.7,2507.3,0.7745]
[1748179055644,3.98,2507.6,2507.3,0.7745]
[1748179055948,4.45938,2507.6,2507.3,0.7745]
[1748179056118,3.98,2507.6,2507.3,0.7745]
[1748179056650,3.98,2507.6,2507.2,4.235]
[1748179057742,4.7938,2507.6,2507.2,4.235]
[1748179062132,4.7938,2507.6,2507.3,4.235]
[1748179064670,18.25,2508.0,2507.3,4.235]
[1748179064875,3.98,2507.8,2507.3,4.235]
[1748179065069,3.98,2507.8,2507.2,0.8102]
[1748179065070,4.02985252,2507.8,2507.2,0.8102]
[1748179065257,4.793,2507.8,2507.3,4.235]
[1748179065438,4.793,2507.8,2507.1,0.25]
[1748179065639,4.793,2507.8,2507.2,5.0638]
[1748179065968,1.99876225,2507.9,2507.2,5.0638]
[1748179065969,0.67917623,2507.7,2507.2,5.0638]
[1748179066184,1.99876225,2507.9,2507.2,5.0638]
[1748179066185,3.98,2507.8,2507.2,5.0638]
[1748179068554,0.55,2507.7,2507.2,5.0638]
[1748179070086,3.98,2507.8,2507.2,5.0638]
[1748179070993,0.55,2507.8,2507.2,5.0638]
[1748179071190,4.53,2507.8,2507.2,5.0638]
[1748179071491,0.65287623,2507.7,2507.2,5.0638]
[1748179072501,1.99876225,2507.9,2507.2,5.0638]
[1748179072502,3.98,2507.9,2507.2,5.0638]
[1748179073318,11.063,2508.0,2507.2,5.0638]
[1748179073525,15.043,2508.0,2507.2,5.0638]
[1748179073816,0.04984909,2507.9,2507.2,5.0638]
[1748179074572,11.063,2508.0,2507.2,5.0638]
[1748179074778,10.25,2508.0,2507.3,0.8288]
[1748179074971,10.25,2508.0,2507.5,0.8288]
[1748179075201,0.97512249,2508.1,2507.5,0.8288]
[1748179075415,6.80066366,2508.3,2507.5,0.8288]
[1748179075615,2.00766366,2508.3,2507.5,0.8288]
[1748179076416,5.98766366,2508.5,2507.5,0.8288]
[1748179076788,10.00766366,2508.5,2507.5,0.8288]
[1748179076989,2.00766366,2508.5,2507.5,0.8288]
[1748179077313,10.00766366,2508.5,2507.5,0.8288]
[1748179077476,11.08973003,2508.5,2507.5,0.8288]
[1748179077675,2.00766366,2508.5,2507.5,0.86866966]
[1748179077919,2.00766366,2508.5,2507.5,0.8288]
[1748179078219,2.00766366,2508.5,2507.6,0.8288]
[1748179078776,2.00766366,2508.5,2507.7,0.86866366]
[1748179079012,2.00766366,2508.5,2508.0,0.8288]
[1748179079176,2.00766366,2508.5,2508.2,0.8288]
[1748179079626,2.00766366,2508.5,2508.2,8.0]
[1748179079919,2.00766366,2509.2,2508.3,0.8288]
[1748179080236,2.00766366,2509.2,2508.4,0.03985493]
[1748179080383,2.00766366,2509.2,2508.5,0.8162]
[1748179083426,2.00766366,2509.2,2508.6,0.8162]
[1748179084123,2.00766366,2509.2,2508.7,4.232]
[1748179084429,2.00766366,2509.2,2508.1,8.596]
[1748179084430,1.3234,2508.9,2508.8,4.232]
[1748179084581,0.55,2508.8,2508.5,4.232]
[1748179086486,0.55,2508.8,2508.6,4.232]
[1748179086686,0.55,2508.9,2508.6,4.232]
[1748179086925,0.8071,2508.7,2508.6,4.232]
[1748179087425,12.7851,2508.7,2508.6,4.232]
[1748179088528,0.55,2508.3,2508.2,4.232]
[1748179088840,0.8071,2508.4,2508.2,4.232]
[1748179089204,11.978,2508.6,2508.2,4.232]
[1748179089403,2.2778,2508.5,2508.2,4.232]
[1748179092123,2.2778,2508.5,2508.1,8.596]
[1748179092321,0.0498385,2508.4,2508.2,4.232]
[1748179092555,4.0278375,2508.6,2508.2,4.232]
[1748179092726,3.978,2508.6,2508.2,4.232]
[1748179095552,0.55,2508.6,2508.2,4.232]
[1748179095720,4.529,2508.6,2508.2,4.232]
[1748179095918,0.57365344,2508.5,2508.2,4.232]
[1748179096114,8.0,2509.0,2508.3,0.8157]
[1748179096429,3.979,2508.9,2508.3,0.8157]
[1748179097951,0.04983036,2508.8,2508.3,0.8157]
[1748179098261,3.979,2508.9,2508.3,0.8157]
[1748179098430,1.50628304,2508.9,2508.3,0.8157]
[1748179101352,0.0498303,2508.8,2508.3,0.8157]
[1748179101731,0.04983029,2508.8,2508.3,0.8157]
[1748179103124,1.50628304,2508.9,2508.3,0.8157]
[1748179104522,0.04983031,2508.8,2508.3,0.8157]
[1748179104828,0.64233017,2508.8,2508.3,0.8157]
[1748179105657,0.59249986,2508.8,2508.3,0.8157]
[1748179105862,0.64233017,2508.8,2508.3,0.8157]
[1748179106644,0.59249986,2508.8,2508.3,0.8157]
[1748179106850,0.64233038,2508.8,2508.3,0.8157]
[1748179107050,0.59249986,2508.8,2508.3,0.8157]
[1748179107982,5.48428304,2508.9,2508.3,0.8157]
[1748179108977,0.04983031,2508.8,2508.3,0.8157]
[1748179109551,5.5341144,2508.9,2508.3,0.8157]
[1748179109753,5.48428304,2508.9,2508.3,0.8157]
[1748179110887,0.55,2508.8,2508.3,0.8157]
[1748179111046,0.55,2508.6,2508.2,4.232]
[1748179111247,1.3544,2508.4,2508.2,4.232]
[1748179111448,0.55,2508.3,2508.2,4.232]
[1748179115890,1.3217,2508.3,2508.2,4.232]
[1748179116255,1.37154426,2508.3,2508.2,4.232]
[1748179116473,10.70649869,2508.3,2508.2,4.232]
[1748179116762,10.65665443,2508.3,2508.2,4.232]
[1748179117356,9.3217,2508.2,2507.1,1.0367]
[1748179117696,9.3217,2508.2,2507.1,0.25]
[1748179117697,0.7717,2507.7,2507.1,0.25]
[1748179117886,0.55,2507.5,2507.1,0.25]
[1748179118070,0.50774666,2507.4,2507.1,0.25]
[1748179119298,0.55,2507.3,2507.1,0.25]
[1748179120599,0.45788606,2507.4,2507.1,0.25]
[1748179120984,3.98,2507.3,2507.1,0.25]
[1748179121497,3.98,2507.4,2507.1,0.25]
[1748179122199,3.98,2507.5,2507.1,0.25]
[1748179125700,3.98,2507.6,2507.1,0.25]
[1748179126108,0.7702,2508.1,2507.2,0.7624]
[1748179126304,3.98,2507.8,2507.2,0.7624]
[1748179126810,0.04985232,2507.7,2507.2,0.7624]
[1748179127005,1.90202,2508.0,2507.2,0.7624]
[1748179127327,3.98,2507.9,2507.2,0.7624]
[1748179127823,3.98,2508.0,2507.2,0.7624]
[1748179129290,5.49321134,2508.0,2507.2,0.7624]
[1748179130678,8.55,2507.9,2507.2,0.7624]
[1748179130883,0.04985079,2507.8,2507.2,0.7624]
[1748179131415,0.86995079,2507.8,2507.3,4.24]
[1748179132780,0.55,2507.7,2507.3,4.24]
[1748179134478,0.59985556,2507.7,2507.3,4.24]
[1748179134977,0.55,2507.7,2507.3,4.24]
[1748179136410,3.98,2507.8,2507.3,4.24]
[1748179136814,4.53,2507.9,2507.3,4.24]
[1748179137599,0.04985143,2507.8,2507.3,4.24]
[1748179137800,4.53,2507.9,2507.3,4.24]
[1748179139418,0.55,2507.9,2507.3,4.24]
[1748179139620,0.20133655,2507.8,2507.3,4.24]
[1748179142141,1.46336549,2508.0,2507.4,0.7823]
[1748179142340,1.513213,2508.0,2507.4,0.7823]
[1748179142656,1.46336549,2508.0,2507.4,0.7823]
[1748179143447,1.513213,2508.0,2507.4,0.7823]
[1748179144026,0.55,2507.9,2507.4,0.7823]
[1748179144344,0.2063213,2507.8,2507.4,0.7823]
[1748179148026,1.46336549,2508.0,2507.4,0.7823]
[1748179150033,2.22706549,2508.0,2507.5,4.24]
[1748179150233,0.55,2507.9,2507.5,4.24]
[1748179151408,0.55,2507.9,2507.4,4.24]
[1748179151816,0.55,2507.9,2507.5,0.8211]
[1748179152016,1.59170204,2507.9,2507.5,0.8211]
[1748179152608,5.02170204,2507.9,2507.5,0.8211]
[1748179154846,0.55,2508.3,2507.5,0.8211]
[1748179155050,3.98,2508.4,2507.5,0.8211]
[1748179157636,0.04983856,2508.6,2507.5,0.8211]
[1748179157839,0.55,2508.5,2507.5,0.8211]
[1748179158046,2.3527686,2508.5,2507.5,0.8211]
[1748179158225,3.98,2508.4,2507.5,0.8211]
[1748179158810,3.98,2508.4,2507.6,0.8138]
[1748179159014,1.8027686,2508.5,2507.6,0.8138]
[1748179159255,5.7827686,2508.5,2507.6,0.8138]
[1748179159652,12.64734743,2508.7,2507.6,0.8138]
[1748179159956,3.979,2508.6,2507.6,0.8138]
[1748179160953,6.37634743,2508.7,2507.6,0.8138]
[1748179161659,0.04983361,2508.6,2507.6,0.8138]
[1748179163032,0.38968377,2508.7,2507.6,0.8138]
[1748179163232,0.04983362,2508.6,2507.6,0.8138]
[1748179165561,0.55,2508.5,2507.6,0.8138]
[1748179165856,1.40853365,2508.5,2507.6,0.8138]
[1748179166057,1.40853365,2508.5,2507.7,4.233]
[1748179168963,1.40853365,2508.5,2507.8,0.8248]
[1748179172869,1.71317543,2508.5,2507.8,0.8248]
[1748179173043,3.979,2508.6,2507.8,0.8248]
[1748179174236,0.55,2508.9,2507.8,0.8248]
[1748179174437,4.529,2508.9,2507.8,0.8248]
[1748179174736,0.39620426,2509.0,2507.8,0.8248]
[1748179174942,2.00766366,2509.1,2507.9,0.8248]
[1748179175135,2.00766366,2509.1,2508.0,0.86466156]
[1748179175365,2.00766366,2509.1,2508.2,0.8248]
[1748179177277,2.00766366,2509.4,2508.2,0.8248]
[1748179178331,2.00766366,2509.4,2508.3,3.979]
[1748179178642,2.00766366,2509.4,2508.5,0.8248]
[1748179180845,2.00766366,2509.4,2508.6,0.8187]
[1748179182480,4.41734749,2509.8,2508.6,0.8187]
[1748179182685,0.44673475,2509.7,2508.6,0.8187]
[1748179183580,0.0498125,2509.6,2508.6,0.8187]
[1748179183753,0.0498125,2509.6,2508.7,4.232]
[1748179184084,0.0498125,2509.6,2508.8,0.8187]
[1748179185648,0.55,2509.5,2508.8,0.8187]
[1748179185849,1.3143,2509.3,2508.8,0.8187]
[1748179186073,1.3143,2509.3,2508.9,4.232]
[1748179194395,0.55,2509.3,2508.9,4.232]
[1748179194582,0.93136,2509.3,2508.9,4.232]
[1748179194795,8.0,2509.5,2508.9,4.232]
[1748179195106,10.25,2509.6,2508.9,4.232]
[1748179195107,10.25,2509.6,2509.0,8.0]
[1748179195266,0.05,2509.9,2509.1,0.8102]
[1748179195609,4.028,2509.9,2509.1,0.8102]
[1748179196192,0.05,2509.9,2509.1,0.8102]
[1748179196862,0.56259331,2509.9,2509.1,0.8102]
[1748179199010,1.375,2509.8,2509.1,0.8102]
[1748179201182,0.04981627,2509.7,2509.1,0.8102]
[1748179201986,0.55,2509.6,2508.5,0.7685]
[1748179202182,0.55,2509.4,2508.6,4.231]
[1748179202382,0.55,2509.2,2508.6,4.231]
[1748179202588,1.3141,2509.0,2508.5,0.7685]
[1748179202793,0.55,2508.8,2508.6,4.231]
[1748179203206,0.55,2508.9,2508.6,4.231]
[1748179203587,3.977,2509.0,2508.7,0.7685]
[1748179203808,0.3977,2508.9,2508.7,0.7685]
[1748179204708,0.3977,2508.9,2508.6,4.231]
[1748179205086,0.0498288,2508.8,2508.6,4.231]
[1748179205300,0.55,2508.8,2508.6,4.231]
[1748179206611,0.7675,2508.7,2508.4,8.594]
[1748179206796,0.55,2508.5,2508.4,8.594]
[1748179207198,0.55,2508.4,2508.2,4.231]
[1748179207601,1.3175,2508.3,2508.2,4.231]
[1748179212693,0.55,2508.2,2507.8,4.232]
[1748179212896,0.59984582,2508.2,2507.8,4.232]
[1748179214790,0.39364126,2508.3,2507.9,4.232]
[1748179215022,0.55,2508.2,2507.9,4.232]
[1748179215901,0.96948271,2508.3,2507.9,4.232]
[1748179216621,3.979,2508.5,2508.0,0.8239]
[1748179216827,4.02883982,2508.5,2507.9,4.232]
[1748179219323,0.94993632,2508.5,2507.9,4.232]
[1748179219530,0.94993632,2508.5,2508.0,0.8239]
[1748179219725,1.12229363,2508.5,2508.0,0.8239]
[1748179220419,1.12229363,2508.5,2508.1,4.232]
[1748179220815,0.55,2508.4,2508.1,4.232]
[1748179221125,0.55,2508.4,2508.2,4.232]
[1748179223337,0.55,2508.4,2508.0,0.8239]
[1748179223636,0.55,2508.4,2508.1,4.231]
[1748179225316,0.55,2508.4,2508.2,4.231]
[1748179226008,1.0423907,2508.3,2508.2,4.231]
[1748179226543,0.55,2508.2,2508.0,0.8239]
[1748179226743,0.55,2508.2,2507.8,4.232]
[1748179226744,0.55,2508.0,2507.8,4.232]
[1748179226911,0.59984737,2507.9,2507.8,4.232]
[1748179227106,0.55,2507.9,2507.8,4.232]
[1748179228045,0.55,2507.7,2507.3,0.7741]
[1748179228343,1.18501625,2507.7,2507.3,4.232]
[1748179228532,1.13516,2507.7,2507.3,4.232]
[1748179233918,5.11516,2507.7,2507.3,4.232]
[1748179234321,10.25,2508.1,2507.4,0.7741]
[1748179234322,11.0226,2508.1,2507.4,0.7741]
[1748179234635,3.98,2507.8,2507.4,0.7741]
[1748179235655,3.98,2507.8,2507.1,8.842]
[1748179235656,0.59984799,2507.7,2507.2,0.8257]
[1748179236730,0.59984799,2507.7,2507.1,8.842]
[1748179240669,4.53,2507.7,2507.2,0.8062]
[1748179241036,3.98,2507.6,2507.2,0.8062]
[1748179241436,3.98,2507.7,2507.2,0.8062]
[1748179242172,3.98,2507.9,2507.2,0.8062]
[1748179242734,10.25,2508.1,2507.2,0.8062]
[1748179242955,3.98,2508.0,2507.2,0.8062]
[1748179243461,10.25,2508.1,2507.2,0.8062]
[1748179243462,3.98,2508.1,2507.2,0.8062]
[1748179245237,0.04984244,2508.2,2507.3,0.8328]
[1748179245468,3.98,2508.2,2507.3,0.8328]
[1748179245671,4.51643425,2508.2,2507.3,0.8328]
[1748179246180,4.56627674,2508.2,2507.3,0.8328]
[1748179246554,0.55,2508.1,2507.3,0.8328]
[1748179246757,0.04984602,2508.0,2507.3,0.8328]
[1748179246958,0.55,2508.1,2507.3,0.8328]
[1748179247169,1.06162803,2508.1,2507.3,0.8328]
[1748179247340,0.55,2508.1,2507.3,0.8328]
[1748179249084,0.55,2508.1,2507.5,0.8328]
[1748179250395,0.04984596,2508.0,2507.5,0.8328]
[1748179250751,0.55,2508.1,2507.5,0.8328]
[1748179251554,0.59984595,2508.1,2507.5,0.8328]
[1748179251758,0.4579846,2508.0,2507.5,0.8328]
[1748179252397,0.55,2507.9,2507.5,0.8328]
[1748179252559,0.55,2507.9,2507.6,4.232]
[1748179252560,0.55,2507.7,2507.6,4.232]
[1748179252759,0.04985091,2507.9,2507.6,4.232]
[1748179253669,0.55,2507.9,2507.6,4.232]
[1748179254579,0.55,2507.7,2507.6,4.232]
[1748179254790,0.04985087,2507.9,2507.6,4.232]
[1748179254958,0.55,2507.8,2507.6,4.232]
[1748179257476,3.98,2507.7,2507.5,4.231]
[1748179257971,3.98,2507.7,2507.3,0.7879]
[1748179258196,0.04985326,2507.6,2507.5,4.231]
[1748179258403,0.5998518,2507.8,2507.5,4.231]
[1748179258577,0.22978553,2507.8,2507.5,4.231]
[1748179258779,3.98,2507.8,2507.5,4.231]
[1748179259896,1.3202,2508.2,2507.6,0.7879]
[1748179260084,0.55,2508.2,2507.6,0.7879]
[1748179260284,3.98,2508.1,2507.6,0.7879]
[1748179260604,10.25,2508.4,2507.6,0.7879]
[1748179260781,3.98,2508.3,2507.6,0.7879]
[1748179263908,0.55,2508.2,2507.6,0.7879]
[1748179264208,0.04984409,2508.1,2507.7,4.231]
[1748179264409,0.59984414,2508.2,2507.7,4.231]
[1748179264708,0.59984414,2508.2,2507.6,0.7879]
[1748179264906,0.59984414,2508.2,2507.7,4.231]
[1748179265103,0.55,2508.0,2507.7,4.231]
[1748179265307,0.55,2507.8,2507.3,0.7634]
[1748179265484,0.55,2507.8,2507.4,4.231]
[1748179267569,0.45798441,2508.1,2507.4,4.231]
[1748179267772,4.53,2508.0,2507.4,4.231]
[1748179268083,1.92409844,2508.0,2507.5,0.7634]
[1748179268289,5.35409844,2508.0,2507.5,0.7634]
[1748179268478,3.98,2508.0,2507.5,0.7634]
[1748179269284,0.45798441,2508.1,2507.5,0.7634]
[1748179269485,3.98,2508.0,2507.5,0.7634]
[1748179269706,3.98,2508.2,2507.5,0.7634]
[1748179271080,4.0298411,2508.2,2507.5,0.7634]
[1748179273313,10.25,2508.3,2507.5,0.7634]
[1748179273518,3.98,2508.2,2507.5,0.7634]
[1748179274496,10.25,2508.3,2507.5,0.7634]
[1748179274813,3.98,2508.3,2507.5,0.7634]
[1748179276519,0.94490698,2508.5,2507.5,0.7634]
[1748179276727,3.98,2508.4,2507.5,0.7634]
[1748179277441,4.60261306,2508.4,2507.5,0.7634]
[1748179278499,4.55277455,2508.4,2507.5,0.7634]
[1748179279433,0.57277455,2508.4,2507.5,0.7634]
[1748179279642,0.94490698,2508.5,2507.5,0.7634]
[1748179279822,0.39490698,2508.5,2507.5,0.7634]
[1748179280027,3.979,2508.5,2507.5,0.7634]
[1748179281215,0.0498365,2508.4,2507.5,0.7634]
[1748179281414,0.04983649,2508.5,2507.5,0.7634]
[1748179281725,0.45272014,2508.5,2507.6,0.7903]
[1748179283513,0.45272012,2508.5,2507.6,0.7903]
[1748179287036,0.55,2508.5,2507.6,0.7903]
[1748179287241,0.94187833,2508.5,2507.6,0.7903]
[1748179288254,4.37087833,2508.5,2507.6,0.7903]
[1748179288455,0.3977,2508.9,2507.6,0.7903]
[1748179288606,3.979,2508.8,2507.6,0.7903]
[1748179288933,4.38493665,2508.8,2507.6,0.7903]
[1748179289132,1.13996668,2508.8,2507.6,0.7903]
[1748179292963,0.73403003,2508.8,2507.6,0.7903]
[1748179293560,0.73403003,2508.8,2507.7,0.8059]
[1748179295366,3.979,2509.0,2507.7,0.8059]
[1748179295862,3.979,2509.0,2507.8,0.8079]
[1748179296565,4.529,2509.1,2507.8,0.8079]
[1748179296938,0.55,2509.1,2507.8,0.8079]
[1748179297263,0.7687,2508.9,2507.8,0.8079]
[1748179297463,0.55,2508.7,2507.9,4.23]
[1748179297652,0.81853606,2508.6,2507.9,4.23]
[1748179297854,0.59983604,2508.7,2508.0,0.8079]
[1748179298162,0.55,2508.7,2508.0,0.8079]
[1748179298664,0.04983446,2508.6,2508.0,0.8079]
[1748179298865,0.67777491,2508.6,2508.0,0.8079]
[1748179299675,0.67777491,2508.6,2508.1,4.229]
[1748179303879,0.62794045,2508.6,2508.2,0.7707]
[1748179315904,0.62794045,2508.6,2508.3,4.229]
[1748179316216,11.0692,2509.0,2508.4,0.7525]
[1748179316217,14.229,2509.0,2508.4,0.7525]
[1748179316425,3.979,2509.0,2508.4,0.79236555]
[1748179316622,3.979,2509.0,2508.4,0.7525]
[1748179316829,4.69939467,2509.0,2508.4,0.7525]
[1748179319107,0.72039467,2509.0,2508.4,0.7525]
[1748179319288,3.979,2509.0,2508.4,0.7525]
[1748179320709,0.8158,2509.2,2508.4,0.7525]
[1748179321009,3.979,2509.0,2508.4,0.7525]
[1748179321410,0.04982558,2508.9,2508.4,0.7525]
[1748179321621,3.979,2509.0,2508.4,0.7525]
[1748179321828,0.3979,2508.9,2508.4,0.7525]
[1748179323318,0.55,2509.1,2508.4,0.7525]
[1748179323621,4.93495264,2509.1,2508.4,0.7525]
[1748179324143,0.55,2508.9,2508.0,0.7525]
[1748179324429,0.55,2508.9,2508.1,4.229]
[1748179324607,0.55,2508.9,2508.2,0.7525]
[1748179325317,0.55,2509.0,2508.2,0.7525]
[1748179325558,1.12050526,2509.0,2508.2,0.7525]
[1748179325830,4.38395264,2509.1,2508.2,0.7525]
[1748179326127,3.978,2509.1,2508.2,0.7525]
[1748179326927,0.55,2509.0,2508.2,0.7525]
[1748179329434,0.40749182,2509.1,2508.2,0.7525]
[1748179329587,3.978,2509.2,2508.2,0.7525]
[1748179329794,5.50857637,2509.2,2508.2,0.7525]
[1748179329994,1.53057637,2509.2,2508.2,0.7525]
[1748179330212,0.55,2509.3,2508.2,0.7525]
[1748179330610,10.00766366,2509.5,2508.2,0.7525]
[1748179330805,13.98566366,2509.5,2508.2,0.7525]
[1748179331139,10.00766366,2509.5,2508.2,0.7525]
[1748179331539,1.47839637,2509.4,2508.2,0.7525]
[1748179331734,0.04981822,2509.3,2508.2,0.7525]
[1748179332441,0.04981822,2509.3,2508.3,4.228]
[1748179332639,1.3483,2509.2,2508.4,5.008]
[1748179334027,1.3483,2509.2,2508.4,0.78]
[1748179334226,1.39812595,2509.2,2508.5,4.228]
[1748179334435,0.55,2509.0,2508.5,4.228]
[1748179335408,0.9398126,2509.1,2508.5,4.228]
[1748179336324,0.7983,2509.2,2508.5,4.228]
[1748179338950,0.55,2509.3,2508.6,0.7945]
[1748179339315,2.66035431,2509.4,2508.6,0.7945]
[1748179341658,0.04981913,2509.3,2508.6,0.7945]
[1748179342756,0.55,2509.2,2508.6,0.7945]
[1748179343357,0.87103543,2509.2,2508.6,0.7945]
[1748179353300,2.66035431,2509.4,2508.6,0.7945]
[1748179355404,1.87745431,2509.4,2508.6,0.7945]
[1748179357718,0.55,2509.5,2508.6,0.7945]
[1748179360716,0.94211552,2509.5,2508.6,0.7945]
[1748179362597,0.04981641,2509.4,2508.6,0.7945]
[1748179364170,0.94211552,2509.5,2508.6,0.7945]
[1748179367007,0.94211552,2509.5,2508.7,4.233]
[1748179367213,0.57107155,2509.4,2508.8,0.8065]
[1748179369283,0.94211552,2509.5,2508.8,0.8065]
[1748179369880,3.978,2509.7,2508.8,0.8065]
[1748179370292,0.04981257,2509.6,2508.8,0.8065]
[1748179370492,0.55,2509.6,2508.8,0.8065]
[1748179370997,0.55,2509.7,2508.8,0.8065]
[1748179371196,0.25576637,2509.6,2508.9,4.233]
[1748179371396,0.64944773,2509.6,2509.0,4.233]
[1748179371597,0.25576637,2509.6,2509.0,4.233]
[1748179373419,0.55,2509.8,2509.1,0.8217]
[1748179373795,0.55,2509.6,2509.2,4.233]
[1748179373999,0.94395975,2509.6,2509.3,4.233]
[1748179375685,0.94395975,2509.6,2508.9,0.8217]
[1748179375891,0.94395975,2509.6,2509.0,4.227]
[1748179376621,0.94395975,2509.6,2508.9,0.8217]
[1748179376831,0.94395975,2509.6,2509.1,4.227]
[1748179380719,2.82626366,2509.9,2509.2,0.8028]
[1748179381299,0.55,2509.8,2509.2,0.8028]
[1748179382190,0.55,2509.8,2509.3,4.227]
[1748179383223,0.55,2509.8,2509.4,4.227]
[1748179383525,3.50659003,2509.9,2509.4,4.227]
[1748179384323,3.90029144,2509.9,2509.4,4.227]
[1748179385641,0.39002914,2509.8,2509.4,4.227]
[1748179385991,0.43983897,2509.8,2509.4,4.227]
[1748179386392,0.39002914,2509.8,2509.4,4.227]
[1748179387328,0.43983906,2509.8,2509.4,4.227]
[1748179387488,0.39002914,2509.8,2509.4,4.227]
[1748179387887,1.89262778,2509.9,2509.4,4.227]
[1748179388625,1.21230141,2509.9,2509.4,4.227]
[1748179389199,0.04980993,2509.8,2509.2,0.8028]
[1748179389425,0.04980993,2509.8,2509.3,4.227]
[1748179390360,0.55,2509.5,2509.4,4.227]
[1748179390571,1.35001522,2509.5,2509.4,4.227]
[1748179390735,0.44370141,2509.9,2508.7,9.4135]
[1748179390736,8.59981941,2509.8,2509.0,4.227]
[1748179390942,0.44370141,2509.9,2509.0,4.227]
[1748179390943,0.55,2509.3,2509.0,4.227]
[1748179391135,0.7502,2509.2,2508.7,8.591]
[1748179391335,0.55,2509.1,2508.8,4.226]
[1748179391678,0.7502,2509.2,2508.8,4.226]
[1748179392339,0.80002698,2509.2,2508.8,4.226]
[1748179392517,1.3002,2508.9,2508.8,4.226]
[1748179393189,0.55,2508.8,2508.7,8.591]
[1748179393966,1.3002,2508.8,2507.8,0.8225]
[1748179394130,0.7502,2508.5,2507.9,4.227]
[1748179398887,1.14760182,2508.5,2507.9,4.227]
[1748179399183,1.14760182,2508.5,2507.8,0.8225]
[1748179399184,0.8102,2508.2,2507.8,4.227]
[1748179408589,0.04984321,2508.1,2507.9,4.227]
[1748179411363,0.8102,2508.2,2507.9,4.227]
[1748179411787,0.55,2508.3,2507.9,4.227]
[1748179412214,0.55,2508.3,2507.8,0.7947]
[1748179412215,0.55,2508.1,2507.4,0.7947]
[1748179412415,0.55,2508.1,2507.2,8.0]
[1748179412416,1.3392,2507.9,2507.8,4.227]
[1748179413499,0.55,2507.7,2507.1,8.842]
[1748179413688,0.55,2507.7,2507.5,4.227]
[1748179414197,1.48392,2507.6,2507.5,4.227]
[1748179414561,0.7892,2507.8,2507.5,4.227]
[1748179414896,0.55,2507.9,2507.5,5.0217]
[1748179415773,4.7682,2508.1,2507.5,5.0217]
[1748179415974,0.55,2508.0,2507.5,5.0217]
[1748179423072,0.55,2508.1,2507.5,5.0217]
[1748179423271,2.10963,2508.1,2507.5,5.0217]
[1748179423667,3.98,2508.2,2507.6,0.769]
[1748179424088,14.23,2508.3,2507.6,0.769]
[1748179424298,3.98,2508.3,2507.6,0.769]
[1748179427515,0.55,2508.4,2507.6,0.769]
[1748179427828,0.55,2508.4,2507.7,0.82267285]
[1748179428036,0.55,2508.4,2507.7,0.7828]
[1748179431025,0.8041,2508.3,2507.7,0.7828]
[1748179431229,0.85393832,2508.3,2507.8,4.228]
[1748179431541,0.8041,2508.3,2507.8,4.228]
[1748179434957,0.55,2508.4,2507.8,4.228]
[1748179435547,0.55,2508.4,2507.9,0.8319]
[1748179436245,0.55,2508.4,2508.0,4.227]
[1748179439152,1.12315018,2508.4,2508.0,4.227]
[1748179441522,0.57315018,2508.4,2508.0,4.227]
[1748179442451,1.36955018,2508.4,2508.0,4.227]
[1748179443081,0.57315018,2508.4,2508.0,4.227]
[1748179445369,10.25,2508.7,2508.1,0.818]
[1748179448737,4.37078005,2508.8,2508.1,0.818]
[1748179448974,5.98666366,2508.9,2508.1,0.818]
[1748179449793,2.00766366,2508.9,2508.1,0.818]
[1748179449951,6.4155703,2508.9,2508.1,0.818]
[1748179450494,0.55,2508.8,2508.1,0.818]
[1748179451850,0.94257579,2508.8,2508.1,0.818]
[1748179454986,0.39257579,2508.8,2508.1,0.818]
[1748179455163,4.40790664,2508.9,2508.1,0.818]
[1748179455783,0.44079066,2508.8,2508.1,0.818]
[1748179456290,0.39309369,2508.8,2508.3,0.7643]
[1748179456492,4.40790664,2508.9,2508.4,4.225]
[1748179457509,0.42890664,2508.9,2508.5,0.7643]
[1748179457683,0.55,2509.0,2508.5,0.7643]
[1748179459975,0.94325282,2509.0,2508.5,0.7643]
[1748179460619,4.9140027,2509.1,2508.5,0.7643]
[1748179461170,4.9140027,2509.1,2508.6,4.225]
[1748179461766,4.9140027,2509.1,2508.5,0.7643]
[1748179461973,0.49140027,2509.0,2508.7,4.225]
[1748179463815,0.55,2508.9,2508.7,4.225]
[1748179464484,1.3364,2508.9,2508.7,4.225]
[1748179464886,1.38622833,2508.9,2508.7,4.225]
[1748179465308,1.3364,2508.9,2508.6,4.225]
[1748179465521,0.55,2508.7,2508.6,4.225]
[1748179467988,0.22844865,2508.8,2508.6,4.225]
[1748179468194,0.40685786,2509.0,2508.6,4.225]
[1748179468432,3.978,2509.1,2508.6,4.225]